fUST/lending_fUST_20240427
["ID","MTS","AMOUNT","RATE_DAILY","PERIOD"]
[323720136,1714193438425,-323.93272673,0.0002,2]
[323720138,1714193438434,-300.0,0.00021289,2]
[323720140,1714193438444,-300.0,0.00021289,2]
[323720142,1714193438455,-550.0,0.0002129,2]
[323720144,1714193438466,-417.0,0.00021407,2]
[323720146,1714193438474,-150.0,0.00021407,2]
[323720148,1714193438483,-730.38126429,0.00022692,2]
[323720150,1714193438492,-154.82968734,0.00022692,2]
[323720152,1714193438502,-927.73093599,0.00022693,2]
[323720154,1714193438512,-154.82968734,0.00022693,2]
[323720156,1714193438523,-379.0,0.00023151,2]
[323720158,1714193438533,-420.0,0.00023418,2]
[323720160,1714193438544,-713.83575721,0.00023509,2]
[323720162,1714193438554,-550.0,0.0002351,2]
[323720164,1714193438564,-236.6599411,0.000236,2]
[323720166,1714193438576,-3149.86736027,0.000236,2]
[323720359,1714193440416,-64001.28781376,0.000236,2]
[323720360,1714193440425,-335998.71218624,0.00023601,2]
[323720522,1714193443355,-187.38950934,0.00022691,2]
[323720523,1714193443365,-4355.54477468,0.00023601,2]
[323720619,1714194338132,-852.12050913,0.00014724,2]
[323720620,1714194353091,-76.07541786,0.00014724,2]
[323720621,1714194353113,-730.38126429,0.00014725,2]
[323720622,1714194353133,-614.6482949,0.00014999,2]
[323720623,1714194353156,-300.0,0.00014999,2]
[323720624,1714194353178,-300.0,0.00014999,2]
[323720625,1714194353200,-155.02058721,0.00015,2]
[323720626,1714194353221,-312.79447259,0.00016496,2]
[323720627,1714194353244,-939.04672329,0.00016497,2]
[323720628,1714194353265,-1320.38498196,0.00016498,2]
[323720629,1714194547225,-719.84911317,0.00016497,2]
[323720630,1714194547246,-521.1072121,0.00016498,2]
[323720631,1714194547268,-329.804469,0.0002,2]
[323720632,1714194547291,-2100.50593903,0.00021149,2]
[323720633,1714194547313,-458.3,0.0002115,2]
[323720634,1714194547332,-417.0,0.00021407,2]
[323720635,1714194547352,-150.0,0.00021407,2]
[323720636,1714194547371,-713.83575721,0.00023389,2]
[323720637,1714194547391,-458.3,0.0002339,2]
[323720638,1714194547411,-789.20453468,0.00023599,2]
[323720639,1714194547432,-300.0,0.00023599,2]
[323720640,1714194547451,-154.92250164,0.000236,2]
[323720641,1714194547472,-217.97168472,0.000236,2]
[323720642,1714194547492,-23108.53990493,0.000236,2]
[323720643,1714194547512,-1000.0,0.00023601,2]
[323720644,1714194547534,-1563.48070757,0.00023601,2]
[323720645,1714194547553,-928.19592699,0.00023886,2]
[323720646,1714194547575,-1490.8786078,0.00023887,2]
[323720647,1714194547596,-1201.56472107,0.00023888,2]
[323720648,1714194547618,-173.71793344,0.00023888,2]
[323720649,1714194547640,-417.0,0.00024407,2]
[323720650,1714194547660,-150.0,0.00024407,2]
[323720651,1714194547680,-458.3,0.0002562,2]
[323720652,1714194547701,-6168.9416085,0.00025692,2]
[323720653,1714194547722,-420.0,0.00025959,2]
[323720654,1714194547743,-308.65492652,0.00026018,2]
[323720655,1714194547763,-157.0,0.0002609,17]
[323720656,1714194547786,-305.41295595,0.000269,2]
[323720657,1714194547808,-305.41295592,0.00026999,2]
[323720658,1714194547827,-10873.21077537,0.00027,15]
[323720659,1714194547847,-335.0,0.00027,2]
[323720660,1714194547868,-305.41295592,0.00027098,2]
[323720661,1714194547888,-153.0,0.00027123,2]
[323720662,1714194547909,-153.0,0.00027123,2]
[323720663,1714194547929,-153.0,0.00027123,2]
[323720664,1714194547952,-153.0,0.00027123,2]
[323720665,1714194547973,-153.0,0.00027123,2]
[323720666,1714194547995,-153.0,0.00027123,2]
[323720667,1714194548014,-2000.0,0.00027177,2]
[323720668,1714194548039,-305.41295592,0.00027197,2]
[323720669,1714194548060,-381.0,0.000272,2]
[323720670,1714194548080,-155.02683523,0.00027243,2]
[323720671,1714194548099,-276.97,0.00027277,3]
[323720672,1714194548120,-830.91,0.00027277,3]
[323720673,1714194548141,-13941.67,0.00027277,3]
[323720674,1714194548162,-15116.38,0.00027277,3]
[323720675,1714194548183,-553.94,0.00027287,3]
[323720676,1714194548203,-21767.59,0.00027287,3]
[323720677,1714194548224,-4257.17103732,0.00027287,3]
[323720721,1714194640666,-496.57285245,0.00022,2]
[323720722,1714194640675,-713.83575721,0.00026023,2]
[323720723,1714194640684,-329.804469,0.00026023,2]
[323720724,1714194640694,-927.50378011,0.00026024,2]
[323720725,1714194640702,-153.0,0.00027123,2]
[323720726,1714194640712,-521.1072121,0.00027287,2]
[323720727,1714194640721,-1563.48070757,0.00027287,2]
[323720728,1714194640730,-435.96328467,0.00027287,2]
[323720758,1714194646521,-2000.0,0.00027187,2]
[323720759,1714194646530,-320.52633784,0.00027287,2]
[323720760,1714194646540,-305.41295592,0.00027296,2]
[323720761,1714194646549,-300.0,0.00027296,2]
[323720762,1714194646558,-3364.96070624,0.00027297,3]
[323720763,1714195530158,-154.82968734,0.00014701,2]
[323720764,1714195530178,-730.38126429,0.00014702,2]
[323720765,1714195530197,-409.52690678,0.00014703,2]
[323720766,1714195537207,-59.17431833,0.00014703,2]
[323720767,1714195537229,-300.0,0.00014999,2]
[323720768,1714195537249,-115.66085588,0.00014999,2]
[323720769,1714195631087,-300.0,0.00014728,2]
[323720770,1714195631107,-729.7450776,0.00014999,2]
[323720771,1714195631127,-312.07990238,0.00014999,2]
[323720772,1714195635076,-209.02730972,0.00014999,2]
[323720773,1714195635097,-100.84018308,0.00015,2]
[323720774,1714195770104,-154.93832663,0.000149,2]
[323720981,1714195838803,-158.0,0.00014728,2]
[323720984,1714195838814,-3.73861411,0.000149,2]
[323720986,1714195838823,-521.1072121,0.000149,2]
[323720987,1714195838834,-363.86320338,0.000149,2]
[323720989,1714195838843,-310.07779484,0.00014999,2]
[323720992,1714195838853,-455.26084074,0.00015,2]
[323720993,1714195838862,-312.79447259,0.00016297,2]
[323720995,1714195838871,-1082.49376229,0.00016298,2]
[323721219,1714195841181,-1018.01217674,0.00016298,2]
[323721221,1714195841191,-939.04672329,0.00016299,2]
[323721223,1714195841200,-174.81426867,0.000163,2]
[323721225,1714195841209,-158.67694073,0.00017371,2]
[323721227,1714195841218,-158.67694073,0.00019841,2]
[323721229,1714195841227,-343.7,0.000209,2]
[323721231,1714195841236,-150.0,0.00022137,2]
[323721234,1714195841246,-417.0,0.00022137,2]
[323721236,1714195841255,-158.67694073,0.00022312,2]
[323721238,1714195841264,-343.7,0.0002279,2]
[323721240,1714195841273,-468.70122511,0.00022809,2]
[323721242,1714195841282,-343.7,0.0002467,2]
[323721244,1714195841291,-113.08644527,0.00024782,2]
[323721246,1714195841303,-45.59049546,0.00024782,2]
[323721248,1714195841312,-300.0,0.00025136,2]
[323721250,1714195841321,-150.0,0.00025137,2]
[323721252,1714195841331,-417.0,0.00025137,2]
[323721254,1714195841340,-927.96343149,0.00026022,2]
[323721256,1714195841349,-587.0,0.000262,2]
[323721258,1714195841358,-153.0,0.00026478,2]
[323721260,1714195841373,-153.0,0.00026478,2]
[323721262,1714195841382,-219.25905294,0.0002656,2]
[323721379,1714195846611,-124.44094706,0.0002656,2]
[323721380,1714195846621,-153.0,0.00026578,2]
[323721381,1714195846630,-7.16905294,0.00026578,2]
[323721382,1714195846668,-145.83094706,0.00026578,2]
[323721383,1714195846678,-203.6873974,0.00026578,2]
[323721384,1714195846687,-306.0,0.00026578,2]
[323721385,1714195846696,-203.6873974,0.00026578,2]
[323721386,1714195846705,-153.0,0.00026578,2]
[323721387,1714195846714,-203.6873974,0.00026578,2]
[323721388,1714195846724,-203.6873974,0.00026578,2]
[323721389,1714195846733,-203.6873974,0.00026578,2]
[323721390,1714195846742,-324.8927227,0.00026849,2]
[323721391,1714195846751,-153.0,0.00026849,2]
[323721392,1714195846760,-153.0,0.00026849,2]
[323721393,1714195846769,-153.0,0.00026849,2]
[323721394,1714195846779,-153.0,0.00026849,2]
[323721395,1714195846788,-293.0,0.00027,2]
[323721396,1714195846797,-154.84515485,0.00027024,2]
[323721397,1714195846806,-156.10020079,0.00027096,3]
[323721398,1714195846815,-153.0,0.00027123,2]
[323721399,1714195846824,-507.58648516,0.0002718,3]
[323721414,1714196746372,-154.82968734,0.00014712,2]
[323721415,1714196746393,-117.59966999,0.00014713,2]
[323721416,1714196945086,-154.82968734,0.00013705,2]
[323721417,1714196945106,-154.82968734,0.00013705,2]
[323721418,1714196945130,-154.82968734,0.00013706,2]
[323721419,1714196945150,-1312.48943229,0.00013706,2]
[323721420,1714196945171,-154.82968734,0.00013707,2]
[323721421,1714196945191,-1202.83854325,0.00013707,2]
[323721422,1714196945212,-309.65937468,0.00013707,2]
[323721423,1714196945232,-154.82968734,0.00013707,2]
[323721424,1714196945252,-260.26241983,0.00013707,2]
[323721425,1714196945272,-300.0,0.00013708,2]
[323721426,1714196945292,-59189.32928802,0.00013709,2]
[323721427,1714196945312,-24900.0,0.0001371,2]
[323721428,1714196945334,-730.38126429,0.000138,2]
[323721429,1714196945353,-84368.26964094,0.000138,2]
[323721430,1714196947100,-215.38625227,0.00013704,2]
[323721431,1714196947121,-119258.00041775,0.000138,2]
[323721432,1714196956318,-49699.79571788,0.000138,2]
[323721433,1714196962209,-155.07864978,0.00013799,2]
[323721434,1714196962230,-154.82968734,0.00013799,2]
[323721435,1714196962250,-18968.85486547,0.000138,2]
[323721436,1714196964101,-55233.64249324,0.000138,2]
[323721437,1714196967221,-154.95443397,0.00013798,2]
[323721438,1714196967241,-286.54315505,0.00013798,2]
[323721439,1714196967260,-82644.69554793,0.000138,2]
[323721440,1714196967279,-730.97706093,0.00013998,2]
[323721441,1714196967297,-154.96231613,0.00013998,2]
[323721442,1714196967317,-730.38126429,0.00013998,2]
[323721443,1714196967336,-155.49455346,0.00013999,2]
[323721444,1714196967357,-928.19592699,0.00014,2]
[323721445,1714196967376,-282.8877448,0.00014612,2]
[323721446,1714196967395,-282.88774476,0.00014612,2]
[323721447,1714196967415,-282.88774476,0.00014613,2]
[323721448,1714196967434,-282.88774476,0.00014613,2]
[323721449,1714196967453,-156.10020079,0.00014613,2]
[323721450,1714196967472,-282.88774476,0.00014613,2]
[323721451,1714196967491,-1384.57646221,0.0001471,2]
[323721452,1714196967511,-9216.14325165,0.00014712,2]
[323721453,1714196967531,-5204.84644638,0.00014713,2]
[323721454,1714196967549,-158.64015662,0.00014713,2]
[323721455,1714196967567,-521.1072121,0.00014713,2]
[323721456,1714196967586,-154.82968734,0.00014713,2]
[323721457,1714196967606,-19193.57611322,0.00014713,2]
[323721458,1714196967625,-7608.26066455,0.00014713,2]
[323721459,1714196973124,-5802.65810495,0.00014713,2]
[323721483,1714197031797,-155.57564723,0.00014712,2]
[323721484,1714197031806,-300.0,0.00014712,2]
[323721485,1714197031816,-206.94693677,0.00014713,2]
[323721580,1714197039904,-2480.59713158,0.00014713,2]
[323721582,1714197039914,-363.86320338,0.00014713,2]
[323721584,1714197039923,-228.9240555,0.00014713,2]
[323721586,1714197039932,-8396.60132499,0.00014713,2]
[323721597,1714197040068,-154.82968734,0.00014713,2]
[323721598,1714197040083,-521.1072121,0.00014713,2]
[323721599,1714197040094,-154.82968734,0.00014999,2]
[323721600,1714197040105,-1986.28436954,0.00015,2]
[323721601,1714197040116,-939.04672329,0.00015,2]
[323721602,1714197040125,-157.13367824,0.00015075,2]
[323721603,1714197040136,-1544.53276927,0.00015076,2]
[323721643,1714197042868,-312.79447259,0.00015,2]
[323721645,1714197042877,-193.06844799,0.00015076,2]
[323721655,1714197042974,-362.90472177,0.00015076,2]
[323721657,1714197042983,-420.0,0.00016183,2]
[323721658,1714197042992,-413.09746044,0.00017036,2]
[323721729,1714197045826,-335.11788326,0.00017036,2]
[323721732,1714197045837,-2383.97552705,0.00017036,2]
[323721817,1714197931114,-730.38126429,0.0001396,2]
[323721818,1714197931133,-206.17044886,0.00013961,2]
[323721819,1714197931154,-187.38950934,0.00013961,2]
[323721820,1714197931176,-409.08052799,0.00013962,2]
[323721821,1714197931195,-1057.60563749,0.00013963,2]
[323721822,1714197931214,-1057.60563749,0.00014104,2]
[323721823,1714197931234,-300.0,0.00014105,2]
[323721824,1714197931252,-5996.3908189,0.00014106,2]
[323721825,1714197938100,-4336.91020297,0.00014106,2]
[323721826,1714198034114,-468.70122511,0.00013949,2]
[323721827,1714198034136,-59189.32928802,0.00013949,2]
[323721828,1714198034155,-27989.24048163,0.00013949,2]
[323721829,1714198044106,-31200.08880639,0.00013949,2]
[323721830,1714198044128,-300.0,0.00013949,2]
[323721831,1714198044149,-300.0,0.00013949,2]
[323721832,1714198044170,-17899.70691149,0.0001395,2]
[323721833,1714198048110,-3722.58631749,0.0001395,2]
[323721834,1714198049147,-3277.70677102,0.0001395,2]
[323721835,1714198049167,-6037.57507819,0.00013965,2]
[323721836,1714198049186,-5688.35898896,0.00014106,2]
[323721837,1714198049206,-363.86320338,0.00014106,2]
[323721838,1714198049226,-154.82968734,0.00014106,2]
[323721839,1714198049246,-521.1072121,0.00014106,2]
[323721840,1714198049269,-158.67694073,0.00014108,2]
[323721841,1714198049289,-154.38889814,0.00014113,2]
[323721842,1714198049308,-754.1474236,0.00014213,2]
[323721843,1714198049327,-720.377359,0.00014781,2]
[323721844,1714198049346,-312.79447259,0.00015,2]
[323721845,1714198049365,-939.04672329,0.00015282,2]
[323721846,1714198049387,-195.89044425,0.00015283,2]
[323721847,1714198097049,-1000.0,0.00032639,120]
[323721848,1714198097081,-1000.0,0.00032639,90]
[323721849,1714198097112,-1000.0,0.00032639,90]
[323721850,1714198097144,-1000.0,0.00032639,120]
[323721851,1714198097172,-20000.0,0.00032639,120]
[323721852,1714198097199,-810.62967773,0.00032639,30]
[323721853,1714198097225,-503.099999,0.00032639,90]
[323721854,1714198097251,-503.099999,0.00032639,120]
[323721855,1714198097277,-1358.10842074,0.00032639,120]
[323721856,1714198097303,-177.75,0.00032639,30]
[323721857,1714198097329,-629.97,0.00032639,30]
[323721858,1714198097354,-1000.0,0.00032639,60]
[323721859,1714198097378,-1000.0,0.00032639,60]
[323721860,1714198097403,-503.099999,0.00032639,60]
[323721861,1714198097428,-1354.09231586,0.00032639,30]
[323721862,1714198102675,-150.5,0.00027367,35]
[323721863,1714198102700,-2425.0,0.00027367,35]
[323721864,1714198102723,-150.5,0.00027377,35]
[323721865,1714198102746,-2425.0,0.00027377,35]
[323721866,1714198102769,-150.5,0.00027387,35]
[323721867,1714198102791,-2425.0,0.00027387,35]
[323721868,1714198102829,-500.0,0.00027397,30]
[323721869,1714198102881,-150.5,0.00027641,35]
[323721870,1714198102903,-150.5,0.00027651,35]
[323721871,1714198102927,-150.5,0.00027661,35]
[323721872,1714198102957,-500.0,0.00027671,30]
[323721873,1714198102998,-47357.23517848,0.0002778,120]
[323721874,1714198103020,-150.5,0.00027915,35]
[323721875,1714198103043,-150.5,0.00027915,35]
[323721876,1714198103068,-233.04,0.00027915,35]
[323721877,1714198103093,-150.5,0.00027925,35]
[323721878,1714198103115,-150.5,0.00027925,35]
[323721879,1714198103141,-150.5,0.00027925,35]
[323721880,1714198103163,-150.5,0.00027935,35]
[323721881,1714198103186,-150.5,0.00027935,35]
[323721882,1714198103208,-150.5,0.00027935,35]
[323721883,1714198103237,-500.0,0.00027945,30]
[323721884,1714198103282,-500.0,0.00028219,30]
[323721885,1714198103325,-500.0,0.00028493,30]
[323721886,1714198103362,-2425.0,0.0002867,35]
[323721887,1714198103386,-2425.0,0.0002868,35]
[323721888,1714198103514,-2425.0,0.0002869,35]
[323721889,1714198103537,-150.5,0.0002873,35]
[323721890,1714198103561,-150.5,0.0002874,35]
[323721891,1714198103585,-150.5,0.0002875,35]
[323721892,1714198103612,-500.0,0.00028767,30]
[323721893,1714198103648,-221.094,0.00028999,30]
[323721894,1714198103677,-500.0,0.00029041,30]
[323721895,1714198103717,-500.0,0.00029315,30]
[323721896,1714198103755,-157.78,0.0002955,35]
[323721897,1714198103781,-150.5,0.0002956,35]
[323721898,1714198103805,-150.5,0.0002956,35]
[323721899,1714198103830,-150.5,0.0002957,35]
[323721900,1714198103854,-150.5,0.0002957,35]
[323721901,1714198103878,-150.5,0.0002958,35]
[323721902,1714198103902,-166.23,0.0002958,35]
[323721903,1714198103930,-500.0,0.00029589,30]
[323721904,1714198103967,-500.0,0.00029863,30]
[323721905,1714198104001,-810.31,0.0003,107]
[323721906,1714198104026,-244.32785364,0.0003,30]
[323721907,1714198104056,-500.0,0.00030136,30]
[323721908,1714198104090,-196.82,0.000303,35]
[323721909,1714198104115,-150.5,0.0003031,35]
[323721910,1714198104144,-500.0,0.0003041,30]
[323721911,1714198104180,-2425.0,0.00030583,35]
[323721912,1714198104205,-150.5,0.0003059,35]
[323721913,1714198104231,-2425.0,0.00030593,35]
[323721914,1714198104254,-150.5,0.000306,35]
[323721915,1714198104283,-500.0,0.00030684,30]
[323721916,1714198104319,-500.0,0.00030958,30]
[323721917,1714198104352,-200.0,0.00031062,120]
[323721918,1714198104377,-500.0,0.00031232,30]
[323721919,1714198104411,-500.0,0.00031506,30]
[323721920,1714198104444,-167.964317,0.00031507,34]
[323721921,1714198104467,-167.964317,0.00031507,44]
[323721922,1714198104490,-167.964317,0.00031507,55]
[323721923,1714198104516,-167.964317,0.00031507,66]
[323721924,1714198104542,-167.964317,0.00031507,77]
[323721925,1714198104565,-167.964317,0.00031507,87]
[323721926,1714198104686,-167.964317,0.00031507,98]
[323721927,1714198104711,-167.964317,0.00031507,109]
[323721928,1714198104734,-167.964317,0.00031507,119]
[323721929,1714198104760,-500.0,0.0003178,30]
[323721930,1714198104794,-500.0,0.00032054,30]
[323721931,1714198104828,-500.0,0.00032328,30]
[323721932,1714198104859,-203.0,0.000326,35]
[323721933,1714198104885,-287.15950031,0.00032602,30]
[323721934,1714198104915,-2428.0,0.00032619,35]
[323721935,1714198104938,-2425.0,0.00032629,35]
[323721936,1714198104970,-200.0,0.00032876,30]
[323721937,1714198104993,-200.0,0.00032876,30]
[323721938,1714198105015,-200.0,0.00032876,30]
[323721939,1714198105039,-200.0,0.00032876,30]
[323721940,1714198105065,-200.0,0.00032876,30]
[323721941,1714198105088,-200.0,0.00032876,30]
[323721942,1714198105112,-200.0,0.00032876,30]
[323721943,1714198105134,-200.0,0.00032876,30]
[323721944,1714198105157,-200.0,0.00032876,30]
[323721945,1714198105180,-200.0,0.00032876,30]
[323721946,1714198105202,-200.0,0.00032876,30]
[323721947,1714198105225,-200.0,0.00032876,30]
[323721948,1714198105248,-200.0,0.00032876,30]
[323721949,1714198105272,-200.0,0.00032876,30]
[323721950,1714198105295,-200.0,0.00032876,30]
[323721951,1714198105317,-200.0,0.00032876,30]
[323721952,1714198105342,-200.0,0.00032876,30]
[323721953,1714198105365,-200.0,0.00032876,30]
[323721954,1714198105387,-200.0,0.00032876,30]
[323721955,1714198105408,-200.0,0.00032876,30]
[323721956,1714198105433,-306.36093493,0.00032876,30]
[323721957,1714198105457,-1365.2,0.00033,32]
[323721958,1714198105505,-1482.53228805,0.00034,60]
[323721959,1714198105529,-202.64618672,0.00035,30]
[323721960,1714198105551,-787.94429663,0.00035,30]
[323721961,1714198105574,-1363.2454219,0.00035,120]
[323721962,1714198105599,-3685.71,0.00035616,30]
[323721963,1714198105622,-1611.424826,0.00035616,120]
[323721964,1714198105645,-3685.71,0.00036712,32]
[323721965,1714198105669,-200.0,0.00037192,120]
[323721966,1714198105693,-3000.0,0.000375,32]
[323721967,1714198105715,-3000.0,0.0003751,32]
[323721968,1714198105737,-3000.0,0.0003752,32]
[323721969,1714198105759,-3000.0,0.0003753,32]
[323721970,1714198105781,-3125.436212,0.0003754,32]
[323721971,1714198105895,-20209.0,0.00037788,60]
[323721972,1714198105918,-3685.71,0.00037808,34]
[323721973,1714198105941,-881.0,0.00038,120]
[323721974,1714198105966,-823.75,0.00038,60]
[323721975,1714198105988,-2500.0,0.000388,30]
[323721976,1714198106009,-3685.71,0.00038904,36]
[323721977,1714198106032,-594.19762651,0.00039,120]
[323721978,1714198106057,-999.0,0.00039397,30]
[323721979,1714198106081,-999.0,0.00039397,30]
[323721980,1714198106105,-999.0,0.00039397,30]
[323721981,1714198106128,-999.0,0.00039397,30]
[323721982,1714198106151,-999.0,0.00039397,30]
[323721983,1714198106173,-999.0,0.00039397,30]
[323721984,1714198106195,-999.0,0.00039397,30]
[323721985,1714198106218,-999.0,0.00039397,30]
[323721986,1714198106241,-999.0,0.00039397,30]
[323721987,1714198106263,-999.0,0.00039397,30]
[323721988,1714198106285,-999.0,0.00039397,30]
[323721989,1714198106307,-999.0,0.00039397,30]
[323721990,1714198106330,-999.0,0.00039397,30]
[323721991,1714198106356,-999.0,0.00039397,30]
[323721992,1714198106378,-999.0,0.00039397,30]
[323721993,1714198106400,-999.0,0.00039397,30]
[323721994,1714198106423,-681.36634286,0.00039397,30]
[323721995,1714198106445,-128034.88047897,0.000398,120]
[323721997,1714198145093,-154.82968734,0.00013946,2]
[323721998,1714198145114,-215.38625227,0.00013947,2]
[323721999,1714198145134,-154.82968734,0.00013947,2]
[323722000,1714198145155,-415.47553351,0.00014106,2]
[323722001,1714198163125,-250.09043812,0.00014106,2]
[323722002,1714198163147,-730.38126429,0.00015281,2]
[323722003,1714198163167,-2100.50593903,0.00015282,2]
[323722004,1714198163310,-187.38950934,0.00015282,2]
[323722005,1714198163330,-360.188679,0.00015708,2]
[323722006,1714198163350,-300.0,0.00015851,2]
[323722007,1714198163371,-300.0,0.00015851,2]
[323722008,1714198163394,-500.0,0.00015852,2]
[323722009,1714198163415,-500.0,0.00015852,2]
[323722010,1714198163435,-422.037697,0.00015852,2]
[323722011,1714198163455,-312.79447259,0.00016176,2]
[323722012,1714198163474,-939.04672329,0.00016177,2]
[323722013,1714198163494,-928.19592699,0.00016179,2]
[323722014,1714198163513,-5805.1787687,0.00016855,2]
[323722015,1714198163533,-884.2224895,0.00016858,2]
[323722016,1714198163553,-154.82968734,0.00016864,2]
[323722017,1714198163572,-610.82591189,0.00016936,2]
[323722018,1714198163591,-154.95443397,0.0001703,2]
[323722019,1714198163611,-154.82968734,0.0001703,2]
[323722020,1714198163629,-614.6482949,0.00017031,2]
[323722021,1714198163649,-409.02360043,0.00017031,2]
[323722022,1714198163668,-272.59104987,0.00017031,2]
[323722023,1714198163687,-313.74562605,0.00017031,2]
[323722024,1714198163706,-1312.48943229,0.00017031,2]
[323722025,1714198163726,-309.65937468,0.00017031,2]
[323722026,1714198163745,-155.09571302,0.00017031,2]
[323722027,1714198163765,-1202.83854325,0.00017031,2]
[323722028,1714198163784,-309.65937468,0.00017031,2]
[323722029,1714198163803,-260.26241983,0.00017031,2]
[323722030,1714198163823,-309.65937468,0.00017031,2]
[323722031,1714198163843,-323.00644432,0.00017031,2]
[323722032,1714198163862,-16055.01300249,0.00017031,2]
[323722033,1714198163883,-78821.47581585,0.00017031,2]
[323722112,1714198238134,-300.0,0.00014728,2]
[323722113,1714198238145,-187.38950934,0.000162,2]
[323722114,1714198238155,-420.0,0.00016201,2]
[323722115,1714198238164,-300.0,0.00017028,2]
[323722116,1714198238174,-1407.0,0.00017029,2]
[323722117,1714198238183,-628.06092851,0.00017029,2]
[323722118,1714198238192,-939.04672329,0.00017029,2]
[323722119,1714198238203,-155.07864978,0.00017029,2]
[323722120,1714198238213,-312.29249141,0.00017029,2]
[323722121,1714198238222,-286.54315505,0.0001703,2]
[323722122,1714198238232,-950.88854262,0.00017031,2]
[323722123,1714198238338,-90100.95023124,0.00017031,2]
[323722125,1714198240199,-800.2864828,0.000162,2]
[323722126,1714198240211,-1300.21945623,0.000162,2]
[323722127,1714198240221,-657.27179883,0.00017031,2]
[323722128,1714198240232,-326.88,0.00017031,2]
[323722135,1714198243185,-121250.00343987,0.00017031,2]
[323722143,1714199036463,2589.08986255,0.000126,2]
[323722144,1714199036938,154.82968734,0.000126,2]
[323722145,1714199036988,459.94893698,0.000126,2]
[323722146,1714199044978,475.03872929,0.000126,2]
[323722147,1714199047940,3401.24698052,0.000126,2]
[323722148,1714199346153,-162.10297212,0.00012495,2]
[323722149,1714199346176,-212.18025179,0.00012496,2]
[323722150,1714199346199,-1491.10873787,0.00012496,2]
[323722151,1714199346220,-362.18450158,0.00012497,2]
[323722152,1714199346240,-154.82968734,0.00012498,2]
[323722153,1714199346260,-981.19186942,0.00012498,2]
[323722154,1714199346282,-300.0,0.00012498,2]
[323722155,1714199346302,-300.0,0.00012498,2]
[323722156,1714199346322,-1202.83854325,0.00012499,2]
[323722157,1714199346341,-154.82968734,0.00012499,2]
[323722158,1714199346360,-173.32023845,0.00012499,2]
[323722159,1714199346380,-732.99109423,0.000125,2]
[323722160,1714199346399,-2241.45138005,0.00012599,2]
[323722161,1714199350092,-173.32023845,0.00012494,2]
[323722162,1714199350112,-40981.71122845,0.00012599,2]
[323722163,1714199351107,-13878.67810987,0.00012599,2]
[323722164,1714199355169,-2087.48856965,0.00012599,2]
[323722165,1714199355190,-154.82968734,0.000126,2]
[323722166,1714199355212,-16098.46283785,0.000126,2]
[323722167,1714199355235,-363.86320338,0.000126,2]
[323722168,1714199355257,-501.8777164,0.00012604,2]
[323722169,1714199355277,-7449.02450825,0.00012604,2]
[323722170,1714199355297,-154.82968734,0.00012604,2]
[323722171,1714199355319,-155.05870745,0.00012605,2]
[323722172,1714199355340,-595.67019083,0.00012605,2]
[323722173,1714199355360,-2195.69128601,0.00012605,2]
[323722174,1714199355380,-24900.0,0.00012607,2]
[323722175,1714199355400,-732.99109422,0.00012803,2]
[323722176,1714199355422,-156.10020079,0.000129,2]
[323722177,1714199355448,-732.99109422,0.00013106,2]
[323722178,1714199355468,-732.99109422,0.00013409,2]
[323722179,1714199355487,-180.094339,0.00013699,2]
[323722180,1714199355510,-732.99109422,0.00013712,2]
[323722181,1714199355531,-420.0,0.00013713,2]
[323722182,1714199355554,-420.0,0.00013748,2]
[323722183,1714199355574,-61572.01312717,0.000138,2]
[323722184,1714199366097,-362.18450158,0.00012598,2]
[323722185,1714199366118,-212.44664222,0.00012598,2]
[323722186,1714199366140,-193.98613075,0.00012598,2]
[323722187,1714199366163,-8548.42691373,0.00012599,2]